fUST/lending_fUST_20250219
["ID","MTS","AMOUNT","RATE_DAILY","PERIOD"]
[353535340,1739902245858,-4705.897159,0.00012438,2]
[353535341,1739902245870,-1222.874998,0.00012438,2]
[353535342,1739902245914,-18777.6,0.00012438,2]
[353535345,1739903037156,267.8558244,0.000105,2]
[353535347,1739903108507,682.36422614,0.000105,2]
[353535364,1739903216342,2819.06161839,0.000105,2]
[353535366,1739903226113,-535.9238181,0.00011149,2]
[353535367,1739903226140,-143.71480448,0.00011291,2]
[353535368,1739903226169,-159.43016212,0.00011291,2]
[353535369,1739903226190,-543.68016487,0.00011358,2]
[353535370,1739903232116,-281.20317066,0.00011358,2]
[353535371,1739903232150,-853.60505187,0.00011358,2]
[353535372,1739903232172,-414.29767343,0.00011397,2]
[353535386,1739903312358,400.0,9.041e-05,2]
[353535411,1739903359116,-268.053313,0.00011119,2]
[353535412,1739903359138,-1587.04275457,0.00011397,2]
[353535413,1739903359160,-177.943409,0.00011398,2]
[353535414,1739903359183,-177.943409,0.00011409,2]
[353535415,1739903359205,-177.943409,0.0001142,2]
[353535416,1739903359227,-177.943409,0.00011432,2]
[353535417,1739903359250,-177.943409,0.00011443,2]
[353535418,1739903359272,-177.943409,0.00011455,2]
[353535419,1739903359295,-709.1672959,0.00012189,2]
[353535420,1739903359320,-300.0,0.00012299,2]
[353535421,1739903359342,-4467.0,0.000123,2]
[353535422,1739903359364,-2233.0,0.000123,2]
[353535423,1739903359387,-2233.0,0.000123,2]
[353535424,1739903359408,-2233.0,0.000123,2]
[353535425,1739903359429,-1825.17143793,0.000123,2]
[353535798,1739903432087,-472.7781973,0.00012189,2]
[353535799,1739903432097,-407.82856207,0.000123,2]
[353535800,1739903432107,-3000.0,0.00012338,2]
[353535801,1739903432117,-300.0,0.00012436,2]
[353535802,1739903432127,-500.0,0.00012437,2]
[353535803,1739903432136,-301.63754259,0.00012437,2]
[353535804,1739903432146,-241.44557985,0.00012437,2]
[353535805,1739903432156,-500.0,0.00012437,2]
[353535806,1739903432165,-500.0,0.00012437,2]
[353535807,1739903432175,-500.0,0.00012437,2]
[353535808,1739903432185,-500.0,0.00012437,2]
[353535809,1739903432195,-500.0,0.00012437,2]
[353535810,1739903432204,-396.42,0.00012437,2]
[353535811,1739903432215,-230.81367683,0.00012437,2]
[353535812,1739903432225,-51842.6049908,0.00012438,5]
[353535813,1739903432240,-500.0,0.00012438,5]
[353535857,1739903437895,-2120.21668568,0.00012438,5]
[353535878,1739903438275,-25335.2191323,0.00012438,5]
[353535879,1739903438289,-1635.25444164,0.00012438,5]
[353535880,1739903438300,-465021.58823734,0.00012438,2]
[353535926,1739903440295,-733958.58937017,0.00012438,2]
[353535929,1739903440307,-200000.0,0.00012438,2]
[353535930,1739903440318,-624.99999985,0.00012438,2]
[353536013,1739903443025,-9464.32788678,0.00012438,2]
[353536015,1739903443040,-3439496.08859999,0.00012438,2]
[353536016,1739903443049,-491992.06,0.00012438,2]
[353536017,1739903443059,-631.0042468,0.0001245,2]
[353536018,1739903443068,-500.0,0.00012473,2]
[353536019,1739903443077,-500.0,0.00012473,2]
[353536021,1739903443087,-537.01363365,0.00012473,2]
[353536023,1739903443096,-500.46242224,0.00012473,2]
[353536025,1739903443105,-500.0,0.00012473,2]
[353536027,1739903443114,-500.0,0.00012473,2]
[353536029,1739903443123,-202.88847706,0.00012473,2]
[353536031,1739903443132,-500.0,0.00012473,2]
[353536033,1739903443142,-501.18039987,0.00012473,2]
[353536034,1739903443151,-152.01026776,0.00012473,2]
[353536035,1739903443160,-5916.41726562,0.00012893,2]
[353536036,1739903443169,-246.99571098,0.00013021,2]
[353536037,1739903443178,-349.57677234,0.00013021,2]
[353536038,1739903443187,-500.0,0.00013021,2]
[353536039,1739903443197,-700.0,0.00013068,2]
[353536040,1739903443208,-152.23936165,0.000136,2]
[353536041,1739903443217,-420.0,0.00013646,2]
[353536042,1739903443309,-354.34902413,0.00013698,2]
[353536043,1739903443319,-503.59163747,0.00013698,2]
[353536044,1739903443329,-500.0,0.00013698,2]
[353536045,1739903443339,-433.49874262,0.00013698,2]
[353536046,1739903443351,-591.09378664,0.00013698,2]
[353536047,1739903443361,-500.0,0.00013698,2]
[353536048,1739903443370,-500.0,0.00013698,2]
[353536049,1739903443379,-500.0,0.00013698,2]
[353536050,1739903443389,-500.0,0.00013698,2]
[353536051,1739903443399,-500.0,0.00013698,2]
[353536052,1739903443408,-500.0,0.00013698,2]
[353536053,1739903443419,-477.91237698,0.00013698,2]
[353536054,1739903443428,-507.59176681,0.00013698,2]
[353536055,1739903443438,-513.42902833,0.00013698,2]
[353536056,1739903443447,-500.0,0.00013698,2]
[353536057,1739903443456,-596.73377169,0.00013698,2]
[353536058,1739903443466,-500.0,0.00013698,2]
[353536059,1739903443475,-500.41883245,0.00013698,2]
[353536060,1739903443484,-500.0,0.00013698,2]
[353536061,1739903443493,-500.0,0.00013698,2]
[353536062,1739903443502,-500.0,0.00013698,2]
[353536063,1739903443512,-500.0,0.00013698,2]
[353536064,1739903443521,-500.0,0.00013698,2]
[353536065,1739903443530,-610.19031201,0.00013698,2]
[353536066,1739903443540,-500.73816969,0.00013698,2]
[353536067,1739903443550,-566.26956109,0.00013698,2]
[353536068,1739903443559,-500.0,0.00013698,2]
[353536069,1739903443568,-500.0,0.00013698,2]
[353536070,1739903443577,-500.0,0.00013698,2]
[353536071,1739903443587,-500.0,0.00013698,2]
[353536072,1739903443596,-500.0,0.00013698,2]
[353536073,1739903443605,-500.0,0.00013698,2]
[353536074,1739903443614,-302.85887328,0.00013698,2]
[353536075,1739903443623,-500.0,0.00013698,2]
[353536076,1739903443633,-500.70638964,0.00013698,2]
[353536077,1739903443642,-500.0,0.00013698,2]
[353536078,1739903443651,-537.00279411,0.00013698,2]
[353536079,1739903443660,-500.0,0.00013698,2]
[353536080,1739903443669,-500.0,0.00013698,2]
[353536081,1739903443679,-505.8652231,0.00013698,2]
[353536082,1739903443688,-500.0,0.00013698,2]
[353536083,1739903443697,-500.0,0.00013698,2]
[353536084,1739903443706,-500.0,0.00013698,2]
[353536085,1739903443715,-500.0,0.00013698,2]
[353536086,1739903443724,-500.0,0.00013698,2]
[353536087,1739903443734,-500.0,0.00013698,2]
[353536088,1739903443743,-500.0,0.00013698,2]
[353536089,1739903443752,-500.0,0.00013698,2]
[353536090,1739903443761,-500.0,0.00013698,2]
[353536091,1739903443770,-500.0,0.00013698,2]
[353536092,1739903443780,-178.01080506,0.00013698,2]
[353536093,1739903443790,-500.0,0.00013698,2]
[353536094,1739903443799,-500.0,0.00013698,2]
[353536095,1739903443808,-500.0,0.00013698,2]
[353536096,1739903443817,-500.0,0.00013698,2]
[353536097,1739903443826,-500.0,0.00013698,2]
[353536098,1739903443835,-500.0,0.00013698,2]
[353536099,1739903443844,-500.0,0.00013698,2]
[353536100,1739903443854,-502.61325206,0.00013698,2]
[353536101,1739903443863,-500.0,0.00013698,2]
[353536102,1739903443873,-500.0,0.00013698,2]
[353536103,1739903443882,-500.0,0.00013698,2]
[353536104,1739903443892,-500.0,0.00013698,2]
[353536105,1739903443901,-500.0,0.00013698,2]
[353536106,1739903443910,-245.46080476,0.00013698,2]
[353536107,1739903443920,-500.0,0.00013698,2]
[353536108,1739903443929,-500.0,0.00013698,2]
[353536109,1739903443940,-501.16602888,0.00013698,2]
[353536110,1739903443949,-500.0,0.00013698,2]
[353536111,1739903443959,-500.0,0.00013698,2]
[353536112,1739903443968,-500.0,0.00013698,2]
[353536113,1739903443978,-500.0,0.00013698,2]
[353536114,1739903443987,-500.0,0.00013698,2]
[353536115,1739903443996,-500.0,0.00013698,2]
[353536116,1739903444005,-500.0,0.00013698,2]
[353536117,1739903444015,-429.57794078,0.00013698,2]
[353536118,1739903444024,-338.57496787,0.00013698,2]
[353536119,1739903444033,-500.0,0.00013698,2]
[353536120,1739903444045,-500.0,0.00013698,2]
[353536121,1739903444054,-500.0,0.00013698,2]
[353536122,1739903444063,-500.0,0.00013698,2]
[353536123,1739903444073,-500.0,0.00013698,2]
[353536124,1739903444082,-500.0,0.00013698,2]
[353536125,1739903444092,-500.0,0.00013698,2]
[353536126,1739903444102,-500.0,0.00013698,2]
[353536127,1739903444111,-500.0,0.00013698,2]
[353536128,1739903444121,-500.0,0.00013698,2]
[353536129,1739903444130,-500.0,0.00013698,2]
[353536130,1739903444139,-504.1575931,0.00013698,2]
[353536131,1739903444147,-500.0,0.00013698,2]
[353536132,1739903444157,-500.0,0.00013698,2]
[353536133,1739903444166,-500.0,0.00013698,2]
[353536134,1739903444176,-500.0,0.00013698,2]
[353536135,1739903444184,-500.0,0.00013698,2]
[353536136,1739903444194,-500.0,0.00013698,2]
[353536137,1739903444203,-500.0,0.00013698,2]
[353536138,1739903444212,-500.0,0.00013698,2]
[353536139,1739903444220,-500.0,0.00013698,2]
[353536140,1739903444230,-588.34928311,0.00013698,2]
[353536141,1739903444239,-500.0,0.00013698,2]
[353536142,1739903444247,-501.19485789,0.00013698,2]
[353536143,1739903444258,-500.0,0.00013698,2]
[353536144,1739903444268,-500.0,0.00013698,2]
[353536145,1739903444277,-500.50899827,0.00013698,2]
[353536146,1739903444286,-500.78189368,0.00013698,2]
[353536147,1739903444297,-500.0,0.00013698,2]
[353536148,1739903444306,-500.0,0.00013698,2]
[353536149,1739903444315,-726.6,0.00013698,2]
[353536150,1739903444324,-500.0,0.00013698,2]
[353536151,1739903444333,-500.0,0.00013698,2]
[353536152,1739903444343,-500.0,0.00013698,2]
[353536153,1739903444355,-501.00285525,0.00013698,2]
[353536154,1739903444364,-692.04,0.00013698,2]
[353536155,1739903444373,-500.95849854,0.00013698,2]
[353536156,1739903444382,-500.58334018,0.00013698,2]
[353536157,1739903444392,-500.0,0.00013698,2]
[353536158,1739903444401,-500.0,0.00013698,2]
[353536159,1739903444410,-500.0,0.00013698,2]
[353536160,1739903444419,-500.0,0.00013698,2]
[353536161,1739903444429,-500.78384974,0.00013698,2]
[353536162,1739903444438,-213.45900279,0.00013698,2]
[353536163,1739903444447,-501.00128565,0.00013698,2]
[353536164,1739903444457,-500.0,0.00013698,2]
[353536165,1739903444467,-504.57787772,0.00013698,2]
[353536166,1739903444476,-500.0,0.00013698,2]
[353536167,1739903444486,-500.0,0.00013698,2]
[353536168,1739903444495,-500.0,0.00013698,2]
[353536169,1739903444505,-500.96818134,0.00013698,2]
[353536170,1739903444514,-500.0,0.00013698,2]
[353536171,1739903444524,-500.0,0.00013698,2]
[353536172,1739903444533,-500.0,0.00013698,2]
[353536173,1739903444545,-500.0,0.00013698,2]
[353536174,1739903444554,-500.0,0.00013698,2]
[353536175,1739903444563,-500.0,0.00013698,2]
[353536176,1739903444573,-500.0,0.00013698,2]
[353536177,1739903444582,-500.0,0.00013698,2]
[353536178,1739903444592,-500.0,0.00013698,2]
[353536179,1739903444601,-500.0,0.00013698,2]
[353536180,1739903444610,-500.0,0.00013698,2]
[353536181,1739903444620,-500.0,0.00013698,2]
[353536182,1739903444631,-502.51766207,0.00013698,2]
[353536183,1739903444640,-500.0,0.00013698,2]
[353536184,1739903444649,-500.0,0.00013698,2]
[353536185,1739903444659,-500.0,0.00013698,2]
[353536186,1739903444668,-501.37182933,0.00013698,2]
[353536187,1739903444677,-500.0,0.00013698,2]
[353536188,1739903444686,-500.0,0.00013698,2]
[353536189,1739903444696,-506.91150807,0.00013698,2]
[353536190,1739903444705,-371.98690133,0.00013698,2]
[353536191,1739903444715,-504.5320964,0.00013698,2]
[353536192,1739903444724,-500.0,0.00013698,2]
[353536193,1739903444734,-500.0,0.00013698,2]
[353536194,1739903444743,-500.0,0.00013698,2]
[353536195,1739903444753,-178.61843389,0.00013698,2]
[353536196,1739903444833,-290.57924227,0.00013698,2]
[353536197,1739903444842,-600.47678787,0.00013698,2]
[353536198,1739903444852,-500.0,0.00013698,2]
[353536199,1739903444862,-500.0,0.00013698,2]
[353536200,1739903444871,-1046.15,0.00013698,2]
[353536201,1739903444880,-500.0,0.00013698,2]
[353536202,1739903444890,-500.0,0.00013698,2]
[353536203,1739903444900,-229.27046621,0.00013698,2]
[353536204,1739903444910,-500.0,0.00013698,2]
[353536205,1739903444919,-511.01475335,0.00013698,2]
[353536206,1739903444928,-531.24809456,0.00013698,2]
[353536207,1739903444938,-500.0,0.00013698,2]
[353536208,1739903444947,-503.3429473,0.00013698,2]
[353536209,1739903444957,-500.0,0.00013698,2]
[353536210,1739903444966,-500.0,0.00013698,2]
[353536211,1739903444976,-500.0,0.00013698,2]
[353536212,1739903444985,-502.99168045,0.00013698,2]
[353536213,1739903444995,-509.53,0.00013698,2]
[353536214,1739903445004,-500.0,0.00013698,2]
[353536215,1739903445014,-505.77826541,0.00013698,2]
[353536216,1739903445023,-509.80566578,0.00013698,2]
[353536217,1739903445033,-500.0,0.00013698,5]
[353536218,1739903445044,-500.0,0.00013698,2]
[353536219,1739903445054,-500.0,0.00013698,2]
[353536220,1739903445064,-500.0,0.00013698,2]
[353536221,1739903445073,-500.0,0.00013698,2]
[353536222,1739903445083,-500.0,0.00013698,2]
[353536223,1739903445092,-500.0,0.00013698,2]
[353536224,1739903445101,-192.81215908,0.00013698,2]
[353536225,1739903445111,-500.0,0.00013698,2]
[353536226,1739903445120,-500.0,0.00013698,2]
[353536227,1739903445129,-500.0,0.00013698,2]
[353536228,1739903445140,-283.54312966,0.00013698,2]
[353536229,1739903445149,-504.65954649,0.00013698,2]
[353536230,1739903445158,-500.0,0.00013698,2]
[353536231,1739903445168,-500.0,0.00013698,2]
[353536232,1739903445177,-500.0,0.00013698,2]
[353536233,1739903445186,-500.0,0.00013698,2]
[353536234,1739903445195,-500.0,0.00013698,2]
[353536235,1739903445204,-500.0,0.00013698,2]
[353536236,1739903445214,-500.0,0.00013698,2]
[353536237,1739903445223,-601.07,0.00013698,2]
[353536238,1739903445232,-500.0,0.00013698,2]
[353536239,1739903445242,-501.99312541,0.00013698,2]
[353536240,1739903445251,-500.0,0.00013698,2]
[353536241,1739903445261,-500.0,0.00013698,2]
[353536242,1739903445270,-500.0,0.00013698,2]
[353536243,1739903445280,-502.55750821,0.00013698,2]
[353536244,1739903445291,-500.0,0.00013698,2]
[353536245,1739903445300,-504.94025662,0.00013698,2]
[353536246,1739903445310,-500.0,0.00013698,2]
[353536247,1739903445319,-503.96083581,0.00013698,2]
[353536248,1739903445328,-500.0,0.00013698,2]
[353536249,1739903445337,-502.59527996,0.00013698,2]
[353536250,1739903445348,-500.0,0.00013698,2]
[353536251,1739903445360,-500.0,0.00013698,2]
[353536252,1739903445369,-502.7453557,0.00013698,2]
[353536253,1739903445379,-505.07929448,0.00013698,2]
[353536254,1739903445388,-500.0,0.00013698,2]
[353536255,1739903445398,-500.0,0.00013698,2]
[353536256,1739903445407,-501.8765187,0.00013698,2]
[353536257,1739903445416,-500.0,0.00013698,2]
[353536258,1739903445426,-500.0,0.00013698,2]
[353536259,1739903445436,-500.0,0.00013698,2]
[353536261,1739903445446,-500.0,0.00013698,2]
[353536262,1739903445455,-502.37645552,0.00013698,2]
[353536263,1739903445464,-500.0,0.00013698,2]
[353536264,1739903445473,-500.51526366,0.00013698,2]
[353536265,1739903445483,-500.0,0.00013698,2]
[353536266,1739903445492,-500.0,0.00013698,2]
[353536268,1739903445502,-500.0,0.00013698,2]
[353536269,1739903445511,-502.42287607,0.00013698,2]
[353536270,1739903445520,-500.0,0.00013698,2]
[353536271,1739903445530,-500.0,0.00013698,2]
[353536272,1739903445539,-505.74745093,0.00013698,2]
[353536273,1739903445548,-500.0,0.00013698,2]
[353536275,1739903445558,-500.0,0.00013698,2]
[353536277,1739903445568,-500.0,0.00013698,2]
[353536278,1739903445577,-500.0,0.00013698,2]
[353536279,1739903445586,-500.0,0.00013698,2]
[353536280,1739903445596,-500.0,0.00013698,2]
[353536281,1739903445606,-500.0,0.00013698,2]
[353536283,1739903445615,-500.0,0.00013698,2]
[353536285,1739903445624,-500.0,0.00013698,2]
[353536286,1739903445633,-301.21532777,0.00013698,2]
[353536288,1739903445642,-502.8348959,0.00013698,2]
[353536289,1739903445652,-500.0,0.00013698,2]
[353536290,1739903445661,-500.0,0.00013698,2]
[353536291,1739903445671,-500.0,0.00013698,2]
[353536293,1739903445680,-625.134702,0.00013698,2]
[353536295,1739903445689,-500.0,0.00013698,2]
[353536297,1739903445698,-500.0,0.00013698,2]
[353536299,1739903445707,-500.0,0.00013698,2]
[353536301,1739903445716,-500.0,0.00013698,2]
[353536303,1739903445726,-514.77291652,0.00013698,2]
[353536305,1739903445735,-500.0,0.00013698,2]
[353536307,1739903445744,-500.0,0.00013698,2]
[353536309,1739903445753,-500.0,0.00013698,2]
[353536311,1739903445763,-203.6961518,0.00013698,2]
[353536313,1739903445772,-500.0,0.00013698,2]
[353536315,1739903445781,-500.0,0.00013698,2]
[353536317,1739903445791,-500.0,0.00013698,2]
[353536319,1739903445799,-501.08108455,0.00013698,2]
[353536321,1739903445808,-500.0,0.00013698,2]
[353536323,1739903445818,-500.0,0.00013698,2]
[353536325,1739903445827,-500.0,0.00013698,2]
[353536327,1739903445836,-500.0,0.00013698,2]
[353536329,1739903445845,-500.0,0.00013698,2]
[353536331,1739903445855,-500.0,0.00013698,2]
[353536333,1739903445865,-500.0,0.00013698,2]
[353536335,1739903445874,-500.0,0.00013698,2]
[353536337,1739903445884,-699.54,0.00013698,2]
[353536340,1739903445893,-502.41594839,0.00013698,2]
[353536342,1739903445903,-500.0,0.00013698,2]
[353536344,1739903445912,-501.13928089,0.00013698,2]
[353536346,1739903445922,-500.0,0.00013698,2]
[353536348,1739903445931,-500.0,0.00013698,2]
[353536350,1739903445941,-500.0,0.00013698,2]
[353536352,1739903445950,-500.0,0.00013698,2]
[353536354,1739903445960,-500.0,0.00013698,2]
[353536356,1739903445969,-500.0,0.00013698,2]
[353536358,1739903445979,-505.99980927,0.00013698,2]
[353536360,1739903445988,-570.65,0.00013698,2]
[353536362,1739903445997,-500.0,0.00013698,2]
[353536364,1739903446007,-500.0,0.00013698,2]
[353536366,1739903446016,-500.0,0.00013698,2]
[353536368,1739903446025,-500.0,0.00013698,2]
[353536370,1739903446034,-500.0,0.00013698,2]
[353536372,1739903446044,-500.0,0.00013698,2]
[353536374,1739903446054,-398.56473276,0.00013698,2]
[353536376,1739903446063,-503.69997172,0.00013698,2]
[353536378,1739903446074,-503.65758533,0.00013698,2]
[353536380,1739903446083,-500.0,0.00013698,2]
[353536382,1739903446093,-500.0,0.00013698,2]
[353536384,1739903446102,-500.0,0.00013698,2]
[353536386,1739903446111,-500.0,0.00013698,2]
[353536388,1739903446121,-500.0,0.00013698,2]
[353536390,1739903446130,-500.0,0.00013698,2]
[353536392,1739903446139,-500.0,0.00013698,2]
[353536394,1739903446149,-500.0,0.00013698,2]
[353536396,1739903446159,-502.02166102,0.00013698,2]
[353536405,1739903446232,-500.0,0.00013698,2]
[353536407,1739903446241,-504.05133651,0.00013698,2]
[353536409,1739903446251,-500.0,0.00013698,2]
[353536411,1739903446259,-501.82976864,0.00013698,2]
[353536413,1739903446269,-501.75269151,0.00013698,2]
[353536415,1739903446278,-501.28900454,0.00013698,2]
[353536417,1739903446287,-501.24523697,0.00013698,2]
[353536419,1739903446298,-500.0,0.00013698,2]
[353536421,1739903446307,-502.132,0.00013698,2]
[353536423,1739903446316,-500.0,0.00013698,2]
[353536425,1739903446326,-501.08928874,0.00013698,2]
[353536427,1739903446335,-586.46444235,0.00013698,2]
[353536429,1739903446346,-504.26150352,0.00013698,2]
[353536431,1739903446357,-500.0,0.00013698,2]
[353536433,1739903446367,-500.0,0.00013698,2]
[353536435,1739903446376,-501.8266129,0.00013698,2]
[353536437,1739903446387,-500.0,0.00013698,2]
[353536439,1739903446397,-500.0,0.00013698,2]
[353536441,1739903446406,-500.0,0.00013698,2]
[353536443,1739903446415,-500.0,0.00013698,2]
[353536445,1739903446426,-500.0,0.00013698,2]
[353536447,1739903446435,-253.21969289,0.00013698,2]
[353536449,1739903446445,-500.0,0.00013698,2]
[353536451,1739903446454,-500.0,0.00013698,2]
[353536453,1739903446464,-500.0,0.00013698,2]
[353536455,1739903446474,-500.0,0.00013698,2]
[353536457,1739903446483,-500.0,0.00013698,2]
[353536459,1739903446492,-500.0,0.00013698,2]
[353536461,1739903446502,-502.65058164,0.00013698,2]
[353536463,1739903446512,-500.81122575,0.00013698,2]
[353536465,1739903446521,-500.0,0.00013698,2]
[353536467,1739903446531,-507.6458509,0.00013698,2]
[353536469,1739903446543,-500.0,0.00013698,2]
[353536471,1739903446553,-500.0,0.00013698,2]
[353536473,1739903446563,-500.0,0.00013698,2]
[353536475,1739903446572,-500.0,0.00013698,2]
[353536477,1739903446582,-467.40683247,0.00013698,2]
[353536479,1739903446591,-500.0,0.00013698,2]
[353536480,1739903446601,-500.0,0.00013698,2]
[353536482,1739903446610,-500.0,0.00013698,2]
[353536484,1739903446620,-500.0,0.00013698,2]
[353536487,1739903446630,-500.0,0.00013698,2]
[353536489,1739903446640,-500.0,0.00013698,2]
[353536491,1739903446651,-500.0,0.00013698,2]
[353536493,1739903446660,-500.0,0.00013698,2]
[353536495,1739903446670,-500.0,0.00013698,2]
[353536497,1739903446679,-500.0,0.00013698,2]
[353536499,1739903446689,-522.66,0.00013698,2]
[353536501,1739903446698,-500.0,0.00013698,2]
[353536503,1739903446708,-500.0,0.00013698,2]
[353536505,1739903446717,-500.0,0.00013698,2]
[353536507,1739903446727,-500.0,0.00013698,2]
[353536509,1739903446736,-455.59426665,0.00013698,2]
[353536511,1739903446745,-500.0,0.00013698,2]
[353536513,1739903446754,-500.0,0.00013698,2]
[353536515,1739903446766,-165.51770334,0.00013698,2]
[353536517,1739903446775,-500.0,0.00013698,2]
[353536519,1739903446785,-500.0,0.00013698,2]
[353536521,1739903446796,-178.7874689,0.00013698,2]
[353536523,1739903446806,-500.0,0.00013698,2]
[353536525,1739903446816,-500.0,0.00013698,2]
[353536527,1739903446826,-2681.85,0.00013698,2]
[353536529,1739903446836,-204.26105608,0.00013698,2]
[353536531,1739903446846,-500.0,0.00013698,2]
[353536533,1739903446855,-9321.21,0.00013698,2]
[353536535,1739903446865,-500.0,0.00013698,2]
[353536537,1739903446875,-500.0,0.00013698,2]
[353536539,1739903446884,-426.91035674,0.00013698,2]
[353536541,1739903446893,-500.0,0.00013698,2]
[353536543,1739903446903,-500.0,0.00013698,2]
[353536545,1739903446913,-500.0,0.00013698,2]
[353536547,1739903446923,-677.61,0.00013698,2]
[353536549,1739903446932,-500.0,0.00013698,2]
[353536551,1739903446942,-500.0,0.00013698,2]
[353536553,1739903446951,-500.0,0.00013698,2]
[353536555,1739903446961,-500.0,0.00013698,2]
[353536557,1739903446970,-500.0,0.00013698,2]
[353536559,1739903446980,-500.0,0.00013698,2]
[353536561,1739903446989,-500.0,0.00013698,2]
[353536563,1739903446999,-1221.15,0.00013698,2]
[353536565,1739903447008,-501.68344605,0.00013698,2]
[353536567,1739903447018,-500.0,0.00013698,2]
[353536569,1739903447027,-1253.57,0.00013698,2]
[353536571,1739903447037,-500.0,0.00013698,2]
[353536573,1739903447048,-500.0,0.00013698,2]
[353536576,1739903447058,-500.0,0.00013698,2]
[353536578,1739903447068,-500.0,0.00013698,2]
[353536579,1739903447076,-500.0,0.00013698,2]
[353536582,1739903447086,-500.0,0.00013698,2]
[353536584,1739903447096,-500.0,0.00013698,2]
[353536586,1739903447105,-500.0,0.00013698,2]
[353536587,1739903447115,-500.0,0.00013698,2]
[353536589,1739903447125,-502.9711927,0.00013698,2]
[353536592,1739903447134,-500.0,0.00013698,2]
[353536593,1739903447144,-500.0,0.00013698,2]
[353536596,1739903447153,-619.21,0.00013698,2]
[353536597,1739903447163,-500.0,0.00013698,2]
[353536600,1739903447173,-500.0,0.00013698,2]
[353536602,1739903447182,-500.0,0.00013698,2]
[353536604,1739903447192,-500.0,0.00013698,2]
[353536605,1739903447202,-501.2999824,0.00013698,2]
[353536607,1739903447212,-589.84,0.00013698,2]
[353536608,1739903447221,-590.26,0.00013698,2]
[353536610,1739903447231,-500.0,0.00013698,2]
[353536613,1739903447274,-29702.26,0.00013698,2]
[353536614,1739903447335,-500.0,0.00013698,2]
[353536617,1739903447508,-500.0,0.00013698,2]
[353536619,1739903447621,-500.0,0.00013698,2]
[353536620,1739903447715,-500.0,0.00013698,2]
[353536623,1739903447860,-500.0,0.00013698,2]
[353536625,1739903447976,-500.0,0.00013698,2]
[353536627,1739903448081,-500.0,0.00013698,2]
[353536629,1739903448201,-871.97,0.00013698,2]
[353536631,1739903448289,-500.0,0.00013698,2]
[353536633,1739903448379,-500.0,0.00013698,2]
[353536634,1739903448409,-500.0,0.00013698,2]
[353536636,1739903448422,-500.0,0.00013698,2]
[353536638,1739903448436,-500.0,0.00013698,2]
[353536640,1739903448446,-1032.28,0.00013698,2]
[353536642,1739903448456,-500.0,0.00013698,2]
[353536644,1739903448466,-500.73365045,0.00013698,2]
[353536646,1739903448476,-550.78,0.00013698,2]
[353536648,1739903448485,-500.0,0.00013698,2]
[353536650,1739903448495,-418.73119519,0.00013698,2]
[353536652,1739903448505,-500.0,0.00013698,2]
[353536655,1739903448515,-263.35555739,0.00013698,2]
[353536657,1739903448525,-5571.05,0.00013698,2]
[353536659,1739903448535,-500.0,0.00013698,2]
[353536661,1739903448546,-500.0,0.00013698,2]
[353536669,1739903448556,-500.0,0.00013698,2]
[353536671,1739903448630,-1317.16,0.00013698,2]
[353536673,1739903448640,-500.0,0.00013698,2]